bitfinex/quotes_ETHUSD_20260305
["timestamp","ask_amount","ask_price","bid_price","bid_amount"]
[1772687788544,0.002,2135.3,2135.1,1.17090534]
[1772687788739,0.45566345,2135.9,2135.2,0.3778826]
[1772687789557,0.45566345,2135.9,2135.2,0.36517457]
[1772687791675,1.62613199,2135.9,2135.3,1.17079567]
[1772687793660,0.45566345,2135.8,2135.3,1.17079567]
[1772687795980,1.62621981,2135.8,2135.3,1.17079567]
[1772687796553,1.17055636,2135.8,2135.3,1.17079567]
[1772687796756,0.45566345,2135.7,2135.3,1.17079567]
[1772687797887,1.21726302,2136.1,2135.3,1.53597024]
[1772687798072,1.21726302,2136.1,2135.5,1.17068602]
[1772687798073,0.45566345,2136.0,2135.5,1.17068602]
[1772687798579,1.17042913,2136.0,2135.5,1.17068602]
[1772687798764,0.002,2135.7,2135.5,1.17068602]
[1772687801379,0.002,2135.7,2135.4,0.001]
[1772687801556,0.002,2135.7,2135.4,1.17173461]
[1772687802965,0.45766345,2135.7,2135.4,1.17173461]
[1772687803154,0.45766345,2135.7,2135.4,0.001]
[1772687804380,0.45566345,2135.6,2135.4,0.001]
[1772687812281,1.62629698,2135.6,2135.4,0.001]
[1772687812581,1.62630295,2135.6,2135.4,0.001]
[1772687813101,0.47016189,2135.5,2135.4,0.001]
[1772687813271,0.47016189,2135.3,2135.1,0.001]
[1772687815496,0.47016189,2135.2,2135.1,0.001]
[1772687816706,0.47016189,2135.1,2134.9,0.001]
[1772687817807,0.47016189,2135.0,2134.9,0.001]
[1772687819392,3.27197647,2135.0,2134.9,0.001]
[1772687819798,0.47016189,2135.0,2134.9,0.001]
[1772687820106,1.64112207,2135.0,2134.9,0.001]
[1772687822683,1.64112207,2135.0,2134.2,0.36617457]
[1772687822684,0.47016189,2134.9,2134.2,0.36617457]
[1772687822885,0.47016189,2134.9,2133.9,0.001]
[1772687822886,0.47016189,2134.7,2134.0,0.36617457]
[1772687823085,0.47016189,2134.7,2133.9,1.53873499]
[1772687823310,0.47016189,2134.7,2133.9,0.36717457]
[1772687823517,0.47016189,2134.5,2133.9,0.001]
[1772687823717,0.47016189,2134.3,2133.9,0.001]
[1772687824692,0.47016189,2134.1,2133.9,0.001]
[1772687826517,0.47016189,2134.1,2133.6,1.53890039]
[1772687827114,1.17149765,2134.1,2133.6,1.53890039]
[1772687827317,0.47016189,2134.0,2133.6,1.53890039]
[1772687827488,0.47016189,2134.0,2133.6,0.36717457]
[1772687827920,0.47016189,2134.0,2133.6,0.001]
[1772687828108,0.47016189,2134.0,2133.4,0.001]
[1772687829095,0.47016189,2133.8,2133.4,0.001]
[1772687831001,0.47016189,2133.8,2132.8,1.17212325]
[1772687831197,0.47016189,2133.6,2132.8,1.17212325]
[1772687831721,0.47016189,2133.6,2132.9,0.36717457]
[1772687832018,1.38382585,2133.8,2132.9,0.36717457]
[1772687832319,0.91366396,2133.8,2132.9,0.36717457]
[1772687832495,2.55544892,2133.8,2132.9,0.36717457]
[1772687832818,2.55544917,2133.8,2132.9,0.36717457]
[1772687833315,2.08528705,2133.8,2133.1,0.36717457]
[1772687833493,0.47016189,2133.7,2133.1,0.36717457]
[1772687833892,0.91366396,2133.8,2133.1,0.36717457]
[1772687835200,1.64150805,2134.3,2133.3,0.36717457]
[1772687835406,0.47016189,2134.2,2133.3,0.36717457]
[1772687836401,0.47016189,2134.2,2133.3,0.36817457]
[1772687836601,0.47016189,2134.2,2133.4,1.696]
[1772687836804,0.47016189,2134.2,2133.5,0.36717457]
[1772687837304,1.171454,2134.1,2133.6,1.17172853]
[1772687837693,1.6416026,2134.2,2133.6,1.17172853]
[1772687837895,0.47016189,2134.2,2133.6,1.5389031]
[1772687838191,1.64156288,2134.2,2133.6,1.5389031]
[1772687841620,4.68472924,2134.6,2133.5,4.68695776]
[1772687841621,1.63728402,2134.6,2133.7,0.36717457]
[1772687841831,0.46606748,2134.5,2133.7,0.36717457]
[1772687842722,0.46806748,2134.7,2133.7,0.36717457]
[1772687842898,0.002,2134.7,2133.7,0.36717457]
[1772687843702,0.002,2134.7,2133.9,0.36717457]
[1772687846021,0.002,2134.7,2134.1,0.36717457]
[1772687846223,0.002,2134.7,2134.3,0.36717457]
[1772687846724,0.48790795,2134.7,2134.2,1.698]
[1772687848212,1.65903311,2134.7,2134.3,1.17134423]
[1772687848408,0.48590795,2134.6,2133.9,1.1715638]
[1772687849431,0.48590795,2134.4,2133.9,1.1715638]
[1772687849922,0.48590795,2134.4,2133.8,1.17257706]
[1772687850302,0.48590795,2134.3,2133.8,1.17257706]
[1772687851931,0.48590795,2134.3,2133.8,1.53975163]
[1772687853619,0.48590795,2134.2,2133.8,1.53975163]
[1772687855261,0.48590795,2134.2,2133.8,0.001]
[1772687855262,0.48590795,2134.1,2133.8,0.001]
[1772687857342,1.65740436,2134.1,2133.8,0.001]
[1772687857818,0.48590795,2134.4,2133.8,0.36817457]
[1772687858017,0.002,2134.5,2133.8,0.36817457]
[1772687858220,0.48790795,2134.5,2133.8,0.36817457]
[1772687858644,0.002,2134.5,2133.8,0.36817457]
[1772687858833,0.002,2134.7,2133.9,0.36517457]
[1772687859033,0.48790795,2134.7,2133.9,0.36517457]
[1772687860645,1.65903339,2134.7,2134.1,0.36517457]
[1772687860832,0.48590795,2134.6,2134.1,0.36517457]
[1772687861030,0.48590795,2134.6,2134.1,2.06817457]
[1772687862441,0.002,2134.3,2134.1,2.06817457]
[1772687862758,0.002,2134.3,2134.2,1.17139911]
[1772687863127,0.002,2134.3,2134.2,1.53657368]
[1772687866249,0.002,2134.3,2134.2,1.17139911]
[1772687866452,0.002,2134.3,2134.1,2.87940935]
[1772687869645,0.002,2134.3,2134.1,1.708]
[1772687869845,0.38889619,2134.2,2133.5,0.36617457]
[1772687870050,0.46532195,2134.1,2133.6,5.8367566]
[1772687871529,0.002,2134.3,2133.7,6.20193117]
[1772687871530,5.15281362,2134.3,2133.7,6.20193117]
[1772687871736,2.02565913,2134.2,2133.7,6.20193117]
[1772687872063,0.002,2134.3,2133.9,0.36517457]
[1772687872238,0.002,2134.3,2133.9,2.07617457]
[1772687872760,0.002,2134.3,2134.0,5.8367566]
[1772687872969,0.002,2134.3,2134.0,6.20193117]
[1772687875667,0.002,2134.3,2134.0,5.8367566]
[1772687875867,0.002,2134.3,2134.0,7.00926154]
[1772687876069,0.002,2134.1,2134.0,7.00926154]
[1772687876445,0.002,2134.3,2134.0,7.37443611]
[1772687878551,0.002,2134.3,2134.0,6.20293117]
[1772687878880,0.46532195,2134.2,2134.0,1.715]
[1772687880884,0.46532195,2134.1,2133.8,0.001]
[1772687881351,0.46532195,2134.1,2133.9,1.216]
[1772687881745,0.46532195,2134.1,2133.8,0.001]
[1772687881941,0.46532195,2134.1,2133.8,1.718]
[1772687882751,0.46532195,2134.1,2133.8,0.001]
[1772687882752,0.46532195,2133.9,2133.8,0.001]
[1772687883259,0.46532195,2133.9,2133.5,0.001]
[1772687883659,0.46532195,2133.9,2133.6,0.001]
[1772687883876,1.1715089,2134.0,2133.6,0.001]
[1772687884175,0.46532195,2133.9,2133.6,0.001]
[1772687885374,0.46532195,2134.1,2133.7,0.001]
[1772687885680,0.46532195,2134.1,2133.7,2.18190346]
[1772687886550,0.46532195,2134.1,2133.7,0.001]
[1772687886981,0.46532195,2134.1,2133.6,1.718]
[1772687887152,1.1715089,2134.0,2133.6,0.001]
[1772687887362,0.46532195,2133.9,2133.6,0.001]
[1772687887784,0.46532195,2133.9,2133.7,0.001]
[1772687888085,1.1715089,2134.0,2133.3,1.17288991]
[1772687888086,0.46532195,2133.6,2133.3,1.17288991]
[1772687888381,0.002,2133.7,2133.3,1.17288991]
[1772687888892,0.002,2133.7,2133.3,1.63679337]
[1772687890583,0.46732195,2133.7,2133.3,0.001]
[1772687891389,1.63901459,2133.7,2133.4,1.718]
[1772687892092,0.002,2133.7,2133.4,2.18190346]
[1772687892791,0.002,2133.7,2133.4,0.46390346]
[1772687893003,0.002,2133.7,2133.5,1.719]
[1772687894286,0.46732195,2133.7,2133.5,1.719]
[1772687895692,1.63900693,2133.7,2133.4,1.719]
[1772687895982,0.46732195,2133.7,2133.4,1.719]
[1772687896295,0.002,2133.7,2133.4,2.18290346]
[1772687898502,0.46732195,2133.7,2133.5,1.718]
[1772687900680,0.002,2133.7,2133.5,3.3730823]
[1772687900897,0.002,2133.7,2133.5,3.3740823]
[1772687901698,0.002,2133.7,2133.6,0.48331639]
[1772687903179,0.002,2133.7,2133.5,1.719]
[1772687907876,0.46679816,2133.7,2133.5,1.719]
[1772687909779,1.63847276,2133.7,2133.5,1.719]
[1772687910103,0.46479816,2133.6,2133.5,0.001]
[1772687911008,0.46479816,2133.6,2133.3,0.001]
[1772687911220,0.46479816,2133.6,2133.3,1.719]
[1772687911778,1.6365744,2133.6,2133.3,1.719]
[1772687912403,0.46479816,2133.5,2133.3,0.001]
[1772687912708,0.46479816,2133.5,2133.3,1.719]
[1772687913077,0.46679816,2133.5,2133.3,1.719]
[1772687914289,1.63860193,2133.5,2133.3,1.719]
[1772687917695,0.46479816,2133.4,2133.2,0.001]
[1772687917903,0.46479816,2133.4,2133.3,1.718]
[1772687918420,1.63663654,2133.4,2133.3,1.62341136]
[1772687918722,4.35799414,2133.4,2132.9,0.49978543]
[1772687918905,0.37966722,2133.3,2132.9,0.50078543]
[1772687919093,1.63663654,2133.4,2132.9,0.50078543]
[1772687919422,1.63663654,2133.4,2133.0,0.001]
[1772687919423,0.37945667,2133.3,2133.0,0.001]
[1772687919623,0.46479816,2133.3,2133.0,0.001]
[1772687919809,1.63862519,2133.5,2133.1,0.49978543]
[1772687920119,1.63859121,2133.5,2133.1,0.50078543]
[1772687920416,0.002,2133.5,2133.3,0.49978543]
[1772687922400,0.002,2133.5,2133.4,1.719]
[1772687922925,0.46679816,2133.5,2133.4,1.719]
[1772687923105,0.46679816,2133.5,2133.3,1.719]
[1772687923292,0.46679816,2133.5,2133.3,1.72]
[1772687926026,0.002,2133.5,2133.4,0.001]
[1772687926325,0.002,2133.5,2133.4,0.50078543]
[1772687926495,0.46679816,2133.7,2133.4,0.49978543]
[1772687926696,0.002,2133.7,2133.4,1.67157852]
[1772687926899,0.46679816,2133.7,2133.3,2.89184794]
[1772687927415,0.46679816,2133.7,2133.3,3.39163337]
[1772687927614,0.46679816,2133.7,2133.4,0.49978543]
[1772687928115,1.63847189,2133.7,2133.4,0.49978543]
[1772687929612,0.002,2133.7,2133.5,0.46360996]
[1772687929824,0.45956966,2133.7,2133.4,1.17180642]
[1772687930030,0.45956966,2133.7,2133.4,1.63541638]
[1772687930229,0.45956966,2133.7,2133.4,0.46360996]
[1772687932607,1.63124417,2133.7,2133.4,0.46360996]
[1772687932829,1.63124417,2133.7,2133.3,0.001]
[1772687932830,0.45756966,2133.6,2133.3,0.001]
[1772687934913,0.45756966,2133.4,2133.3,0.001]
[1772687936839,0.45756966,2133.4,2133.0,0.001]
[1772687937220,0.45756966,2133.2,2133.0,0.001]
[1772687939338,1.62957284,2133.1,2133.0,0.001]
[1772687940211,5.14504617,2133.4,2133.0,0.46460996]
[1772687940519,0.45756966,2133.3,2133.0,0.001]
[1772687940711,0.45756966,2133.2,2133.0,0.001]
[1772687941433,1.62957284,2133.1,2133.0,0.001]
[1772687944633,1.17200318,2133.1,2133.0,0.001]
[1772687945343,0.45756966,2133.1,2133.0,0.001]
[1772687947742,1.62957284,2133.1,2133.0,0.001]
[1772687949840,1.62957284,2133.1,2132.4,1.63595143]
[1772687949841,0.45756966,2133.0,2132.4,1.63595143]
[1772687950020,0.45756966,2133.0,2132.5,0.46360996]
[1772687951026,1.17400318,2133.1,2132.5,0.46360996]
[1772687951441,1.17400318,2133.1,2132.7,0.001]
[1772687951625,1.62963453,2133.0,2132.7,0.001]
[1772687952126,1.62963453,2133.0,2132.7,0.46460996]
[1772687952747,0.002,2133.3,2132.8,0.46360996]
[1772687952949,1.1738964,2133.3,2132.8,0.46360996]
[1772687953126,1.17389685,2133.3,2132.8,0.46360996]
[1772687953328,1.17389659,2133.3,2132.8,0.46360996]
[1772687953923,0.002,2133.3,2133.0,0.46360996]
[1772687954243,1.63360867,2133.3,2132.8,3.3487336]
[1772687954452,1.63160867,2133.2,2132.7,3.3498082]
[1772687954648,1.63160867,2133.2,2132.7,2.88619824]
[1772687954853,1.63160867,2133.2,2132.8,0.46360996]
[1772687955552,1.17403901,2133.1,2132.8,0.46360996]
[1772687955849,2.80365175,2133.1,2132.8,0.46360996]
[1772687957055,0.45756966,2133.0,2132.1,0.40656461]
[1772687957255,0.45838895,2133.0,2132.3,0.40656461]
[1772687957836,1.172223,2132.7,2132.3,0.40656461]
[1772687958227,1.172223,2132.7,2132.2,2.8844538]
[1772687958228,0.45756966,2132.6,2132.2,1.712]
[1772687958435,0.45756966,2132.6,2132.0,0.40656461]
[1772687958436,0.45838895,2132.6,2132.0,0.40656461]
[1772687958646,1.172223,2132.7,2132.0,0.40656461]
[1772687958647,0.45756966,2132.4,2132.0,0.40656461]
[1772687958932,0.45756966,2132.4,2131.8,2.45706661]
[1772687959138,0.45756966,2132.4,2131.8,0.74506661]
[1772687959339,0.48754694,2132.2,2131.8,0.338502]
[1772687959740,0.48754694,2132.0,2131.8,0.338502]
[1772687960139,0.48836623,2132.0,2131.8,0.338502]
[1772687960743,0.48754694,2131.9,2131.8,0.338502]
[1772687961075,0.48754694,2131.9,2131.5,1.57941889]
[1772687962562,0.00081929,2131.8,2131.5,1.17285428]
[1772687963174,0.00081929,2131.8,2131.4,1.17289354]
[1772687963965,0.00081929,2131.8,2131.7,0.001]
[1772687964171,0.48836623,2131.8,2131.7,0.001]
[1772687965273,0.48754694,2131.8,2131.5,0.00018071]
[1772687966381,1.66030538,2131.8,2131.5,0.00018071]
[1772687966563,0.47272494,2131.7,2131.5,0.00018071]
[1772687967888,1.17275844,2131.8,2131.5,0.00018071]
[1772687968380,0.47272494,2131.7,2131.5,0.00018071]
[1772687968558,0.47272494,2131.9,2131.5,0.40774532]
[1772687968958,1.64539473,2131.9,2131.5,0.40774532]
[1772687969372,0.47272494,2131.9,2131.5,0.40774532]
[1772687969583,1.64538913,2131.9,2131.5,0.40774532]
[1772687969983,0.47272494,2131.9,2131.5,0.00018071]
[1772687970160,0.47272494,2132.1,2131.5,0.40774532]
[1772687970354,4.69136022,2132.5,2131.7,0.40756461]
[1772687970355,1.64515335,2132.4,2131.7,0.40756461]
[1772687970558,0.47272494,2132.4,2131.7,0.40756461]
[1772687972487,0.47272494,2132.4,2131.8,1.5802825]
[1772687973363,0.47272494,2132.3,2131.8,1.5802825]
[1772687973866,0.47272494,2132.3,2131.9,1.708]
[1772687974958,1.64519752,2132.3,2131.9,1.708]
[1772687975163,0.47272494,2132.3,2131.9,1.708]
[1772687975592,0.47272494,2132.3,2131.9,2.11556461]
[1772687977097,0.47272494,2132.3,2131.9,3.28818304]
[1772687977098,1.64517732,2132.3,2131.9,3.28818304]
[1772687977395,1.64517732,2132.3,2131.9,0.40756461]
[1772687977583,1.64517732,2132.3,2132.0,1.709]
[1772687977783,0.002,2132.1,2132.0,1.709]
[1772687978594,1.64709505,2132.5,2132.0,2.11656461]
[1772687978766,0.47272494,2132.4,2132.0,2.11656461]
[1772687978964,1.64513377,2132.4,2132.0,2.11656461]
[1772687979192,1.64513377,2132.4,2132.0,3.28915905]
[1772687979378,1.64513377,2132.4,2132.0,3.23915905]
[1772687980080,1.64513377,2132.4,2132.0,2.06656461]
[1772687980390,0.47272494,2132.3,2132.0,2.06656461]
[1772687980591,0.47272494,2132.3,2132.0,3.23917117]
[1772687980901,0.47272494,2132.3,2132.0,2.06656461]
[1772687981192,1.6451825,2132.3,2132.0,2.06656461]
[1772687981371,0.47272494,2132.3,2132.0,2.06656461]
[1772687982310,1.64517245,2132.3,2131.9,1.57819176]
[1772687982517,0.47272494,2132.2,2131.9,0.40556461]
[1772687982805,0.47272494,2132.2,2131.8,1.709]
[1772687983480,1.64527357,2132.2,2131.8,1.709]
[1772687983874,0.47272494,2132.1,2131.7,1.57929597]
[1772687984076,0.47272494,2132.1,2131.7,2.88273136]
[1772687984686,0.47272494,2132.1,2131.7,2.88277154]
[1772687985476,1.17258079,2132.1,2131.7,2.88277154]
[1772687985672,0.47272494,2132.0,2131.7,2.88277154]
[1772687986409,0.47272494,2132.0,2131.7,1.71]
[1772687986581,0.47272494,2132.0,2131.7,0.001]
[1772687987895,0.47272494,2131.9,2131.7,0.001]
[1772687989889,1.64543372,2131.9,2131.7,0.001]
[1772687990116,0.4798172,2131.8,2131.7,0.001]
[1772687991206,0.002,2132.1,2131.7,0.40656461]
[1772687991710,0.4798172,2132.0,2131.7,0.001]
[1772687991899,0.4798172,2131.9,2131.7,0.001]
[1772687993911,0.002,2132.1,2131.9,0.40556461]
[1772687996306,0.4818172,2132.1,2131.8,1.709]
[1772687996696,0.4818172,2132.1,2131.8,2.11456461]
[1772687997104,0.4818172,2132.1,2131.7,0.001]
[1772687998399,1.67260787,2132.0,2131.7,0.001]
[1772687999113,0.5,2131.9,2131.3,1.708]
[1772688000820,0.5,2131.8,2131.4,1.708]
[1772688001709,0.5,2131.8,2131.4,2.88181962]
[1772688002918,0.5,2132.0,2131.5,2.34670256]
[1772688003224,0.5,2132.0,2131.5,2.88081962]
[1772688003920,0.5,2131.9,2130.9,1.17321319]
[1772688004100,0.5,2131.9,2130.9,2.88021319]
[1772688004301,0.5,2131.9,2131.0,2.88081962]
[1772688004615,0.5,2131.7,2131.0,1.17381962]
[1772688004790,0.5,2131.5,2131.0,1.17381962]
[1772688004994,0.5,2131.5,2131.0,2.3469776]
[1772688005305,0.5,2131.5,2131.0,2.34697629]
[1772688005688,0.5,2131.5,2131.0,1.17381962]
[1772688006430,0.5,2131.5,2131.2,0.001]
[1772688007237,0.5,2131.5,2130.8,1.17322346]
[1772688007238,0.4995,2131.3,2130.8,1.17322346]
[1772688007399,0.4995,2131.3,2130.7,2.88132227]
[1772688007725,0.4995,2131.3,2130.8,1.17381962]
[1772688008291,0.4995,2131.3,2130.7,1.17331836]
[1772688008693,0.4995,2131.3,2130.7,2.88031836]
[1772688009107,0.4995,2131.1,2130.7,2.88031836]
[1772688009412,0.4995,2131.1,2130.7,1.17431836]
[1772688009927,0.4995,2131.1,2130.5,1.707]
[1772688010221,0.4995,2131.1,2130.5,1.17381962]
[1772688011029,0.4995,2131.1,2130.5,1.17481962]
[1772688011221,0.4995,2131.0,2130.6,1.17337839]
[1772688011525,0.4995,2131.0,2130.5,1.17481962]
[1772688011694,0.4995,2131.0,2130.5,1.17381962]
[1772688012529,0.4995,2131.0,2129.5,9.46768113]
[1772688012530,0.4995,2130.7,2129.9,0.33305732]
[1772688012828,0.4995,2130.7,2130.1,1.17381962]
[1772688013024,0.4995,2130.7,2129.8,0.001]
[1772688013331,0.4995,2130.5,2129.9,1.17381962]
[1772688014204,0.4995,2130.5,2129.5,1.75411515]
[1772688014517,0.4995,2130.5,2129.5,3.46211515]
[1772688014707,0.4995,2130.5,2129.6,0.001]
[1772688015298,0.4995,2130.3,2129.6,0.001]
[1772688016127,0.4995,2130.3,2129.5,1.75311515]
[1772688016332,0.4995,2130.3,2128.0,3.92077618]
[1772688016333,0.4995,2129.9,2129.1,1.34025654]
[1772688016632,0.4995,2129.9,2129.1,0.1670574]
[1772688017122,0.4995,2129.9,2129.1,0.1660574]
[1772688017300,0.4995,2129.7,2129.1,1.34025519]
[1772688017496,0.4995,2129.7,2129.2,0.001]
[1772688018727,0.4995,2129.7,2129.5,0.001]
[1772688019425,0.4995,2129.9,2129.1,1.29225519]
[1772688019626,0.5,2130.1,2129.1,1.29225519]
[1772688019830,0.5,2129.8,2129.1,0.1180574]
[1772688020031,0.49761808,2129.8,2128.5,2.99355847]
[1772688020498,0.49761808,2129.6,2128.5,2.99355847]
[1772688021535,0.49761808,2129.4,2128.6,1.696]
[1772688023221,0.49761808,2129.4,2128.5,2.99155847]
[1772688023527,0.49761808,2129.2,2128.5,1.29255847]
[1772688023700,0.49761808,2129.2,2128.5,2.99258848]
[1772688023901,0.49761808,2129.2,2128.5,1.17453108]
[1772688024117,0.49761808,2129.2,2128.4,1.701]
[1772688024319,0.49761808,2129.2,2128.3,0.1180574]
[1772688024601,0.49761808,2129.2,2128.1,1.29277116]
[1772688024824,0.49761808,2129.2,2128.3,0.1180574]
[1772688025015,0.49761808,2129.2,2128.4,1.8200574]
[1772688025539,0.49761808,2129.2,2128.4,1.702]
[1772688025740,0.49761808,2129.1,2128.5,1.29259345]
[1772688026039,0.49761808,2129.1,2128.6,0.1180574]
[1772688026450,0.49761808,2129.1,2128.5,1.17453605]
[1772688026858,0.49761808,2129.1,2128.5,1.29259345]
[1772688027155,0.49761808,2129.1,2128.6,0.1180574]
[1772688028058,0.49761808,2129.1,2128.7,1.1744257]
[1772688028217,0.45223553,2129.3,2128.8,0.1180574]
[1772688029060,0.45223553,2129.3,2128.8,1.708]
[1772688029442,0.45223553,2129.3,2128.8,1.8260574]
[1772688029751,0.45223553,2129.7,2128.9,0.1180574]
[1772688030246,0.45223553,2129.5,2129.0,1.17426021]
[1772688031146,0.45223553,2129.5,2129.0,1.29231761]
[1772688032120,0.45223553,2129.4,2129.1,0.0011]
[1772688034887,1.62627619,2129.4,2129.1,0.0011]
[1772688035490,0.45223553,2129.4,2129.1,0.0011]
[1772688035776,0.001,2129.5,2129.1,0.1191574]
[1772688036578,0.45323553,2129.5,2129.1,1.17526643]
[1772688036871,0.45323553,2129.5,2129.2,1.713]
[1772688037270,0.45323553,2129.5,2129.1,1.17526643]
[1772688037469,0.45323553,2129.5,2129.1,2.888301]
[1772688037674,0.45323553,2129.5,2129.1,1.7141]
[1772688038067,0.45323553,2129.5,2128.5,4.6977266]
[1772688038068,0.45323553,2129.5,2128.5,3.00554853]
[1772688038264,0.45323553,2129.5,2128.5,2.88749113]
[1772688038861,0.45223553,2129.3,2128.5,2.88749113]
[1772688041062,0.45223553,2129.1,2128.5,2.88749113]
[1772688041678,0.45223553,2129.1,2128.6,1.709]
[1772688041989,1.17414991,2129.2,2128.6,1.8281574]
[1772688042396,1.17414991,2129.2,2128.7,0.1191574]
[1772688042691,0.45223553,2129.1,2128.5,1.17449113]
[1772688043060,1.17426021,2129.0,2128.5,4.6981264]
[1772688043260,1.62649574,2129.0,2128.6,1.71]
[1772688043459,1.62649574,2129.0,2128.5,2.88453605]
[1772688043972,0.45223553,2129.0,2128.5,2.88453605]
[1772688044172,0.45223553,2129.0,2128.5,1.17453605]
[1772688044507,0.45223553,2129.0,2128.6,1.711]
[1772688044989,0.45223553,2129.0,2128.5,1.17453605]
[1772688045179,0.45223553,2129.0,2128.6,2.88544429]
[1772688045579,1.62650123,2129.0,2128.6,1.711]
[1772688045761,1.62650123,2129.0,2128.5,1.711]
[1772688046372,0.45223553,2128.9,2128.5,1.711]
[1772688046691,0.001,2129.2,2128.8,0.0011]
[1772688046869,0.001,2129.2,2128.8,0.1202574]
[1772688047259,0.001,2129.2,2128.9,1.29347277]
[1772688047688,0.001,2129.5,2129.0,0.1191574]
[1772688047985,0.001,2129.5,2128.9,1.17431537]
[1772688047986,0.001,2129.5,2129.2,0.1191574]
[1772688049593,0.001,2129.5,2129.1,2.8861585]
[1772688050983,0.46263471,2129.4,2128.8,0.0011]
[1772688051691,0.46263471,2129.2,2128.8,0.0011]
[1772688051874,0.46263471,2129.2,2128.6,1.713]
[1772688054197,0.46263471,2129.0,2128.6,1.713]
[1772688054494,0.46263471,2129.0,2128.3,4.81866768]
[1772688054700,0.46263471,2129.0,2128.6,1.713]
[1772688056071,0.46263471,2129.0,2128.6,2.88745256]
[1772688056280,1.63671719,2129.4,2128.7,0.1202574]
[1772688056479,0.46263471,2129.4,2128.7,0.1202574]
[1772688057089,0.46263471,2129.4,2128.8,1.8332574]
[1772688057389,0.46263471,2129.4,2128.9,0.1202574]
[1772688058308,0.001,2129.5,2129.0,1.29451761]
[1772688058977,0.001,2129.5,2129.1,0.1202574]
[1772688059397,0.001,2129.5,2129.0,1.17426021]
[1772688059398,0.76725224,2130.3,2129.2,0.12]
[1772688059577,6.93180567,2130.2,2129.9,0.24473307]
[1772688059777,0.46263471,2130.1,2129.6,1.713]
[1772688059999,0.46263471,2130.1,2129.0,3.36988288]
[1772688060000,0.46263471,2130.0,2129.0,3.36988288]
[1772688060188,0.46263471,2130.0,2128.6,0.1202574]
[1772688060189,0.46263471,2129.6,2128.6,0.1202574]
[1772688060382,0.46263471,2129.6,2128.8,0.0011]
[1772688060611,0.001,2129.3,2128.8,0.0011]
[1772688060781,0.46263471,2129.2,2128.8,0.0011]
[1772688060982,5.43670731,2129.2,2128.8,0.0011]
[1772688061387,0.46263471,2129.1,2128.8,0.0011]
[1772688062207,4.9740726,2129.0,2128.8,0.0011]
[1772688062414,0.29065133,2129.0,2128.8,0.0011]
[1772688063299,0.46363471,2129.3,2128.8,0.0011]
[1772688063539,0.46363471,2129.3,2128.9,0.48746861]
[1772688063540,0.001,2129.3,2128.9,0.48746861]
[1772688064603,0.001,2129.3,2129.0,1.17426021]
[1772688064805,4.69483775,2130.0,2129.1,0.48746861]
[1772688064806,0.46263471,2130.0,2129.1,0.48746861]
[1772688064991,0.46263471,2130.0,2129.0,1.17426021]
[1772688064992,0.46263471,2129.8,2129.0,2.24671493]
[1772688065180,0.46263471,2129.8,2128.8,0.0011]
[1772688065181,0.46263471,2129.7,2128.8,0.0011]
[1772688066611,0.46263471,2129.5,2128.8,0.0011]
[1772688068595,0.46263471,2129.3,2128.8,0.0011]
[1772688070812,0.46263471,2129.1,2128.8,0.0011]
[1772688072599,0.46263471,2129.4,2128.8,0.0011]
[1772688073689,0.46263471,2129.4,2129.0,0.0011]
[1772688073903,0.001,2129.1,2129.0,0.0011]
[1772688075490,0.46363471,2129.1,2129.0,0.0011]
[1772688075724,0.46363471,2129.1,2128.8,0.0011]
[1772688077622,1.17426021,2129.0,2128.8,0.0011]
[1772688078226,1.63689492,2129.0,2128.8,0.0011]
[1772688078893,0.46829023,2128.9,2128.8,0.0011]
[1772688079702,1.6426056,2128.9,2128.8,0.0011]
[1772688084105,0.46829023,2128.8,2128.0,0.47433925]
[1772688084319,0.46829023,2128.8,2128.0,1.64915031]
[1772688084525,0.46829023,2128.8,2128.1,0.47433925]
[1772688086021,1.64271593,2128.7,2128.1,0.47433925]
[1772688086207,0.46829023,2128.6,2128.1,0.47433925]
[1772688086413,0.46829023,2128.6,2127.9,0.46258163]
[1772688086616,0.46829023,2128.6,2128.5,0.0011]
[1772688088231,1.6427711,2128.6,2128.5,0.0011]
[1772688091434,0.48115984,2128.5,2127.8,0.32630205]
[1772688092939,0.48115984,2128.3,2127.8,0.32630205]
[1772688093734,0.48115984,2128.3,2127.8,0.78888368]
[1772688094428,0.48115984,2128.3,2127.8,0.32630205]
[1772688094611,0.48115984,2128.3,2127.6,0.46258163]
[1772688094815,0.48115984,2128.3,2127.7,0.0011]
[1772688095815,0.48115984,2128.1,2127.8,0.0011]
[1772688096056,0.48115984,2128.1,2127.6,0.46258163]
[1772688096421,0.48115984,2128.1,2127.7,0.0011]
[1772688096750,0.48115984,2128.1,2127.7,0.46368163]
[1772688096930,4.69847616,2128.4,2127.8,0.46258163]
[1772688097644,0.48115984,2128.7,2127.8,0.46258163]
[1772688097838,1.1744593,2128.7,2128.0,0.46258163]
[1772688098245,1.65561914,2128.7,2128.0,0.46258163]
[1772688098449,1.65561914,2128.7,2128.0,0.46368163]
[1772688098651,0.48115984,2128.6,2128.0,0.46368163]
[1772688098951,0.001,2128.3,2128.0,0.46368163]
[1772688099124,0.001,2128.3,2128.0,0.0011]
[1772688099328,0.48215984,2128.3,2127.5,0.0011]
[1772688099525,0.48215984,2128.3,2127.5,0.46368163]
[1772688099932,0.48115984,2128.1,2127.5,0.46368163]
[1772688100339,1.17470162,2128.2,2127.5,0.46368163]
[1772688100646,1.17470162,2128.2,2127.6,0.46258163]
[1772688101148,1.17569187,2128.3,2127.6,0.46258163]
[1772688101352,1.17565488,2128.3,2127.6,0.46258163]
[1772688102348,0.001,2128.3,2127.8,0.46258163]
[1772688104555,1.1744257,2128.7,2128.0,0.46258163]
[1772688105256,1.65558554,2128.7,2128.0,0.46258163]
[1772688106265,0.48115984,2128.6,2128.0,0.46258163]
[1772688107724,1.17453605,2128.5,2128.0,1.17476752]
[1772688107936,1.17453605,2128.5,2128.1,0.46258163]
[1772688108321,0.48215984,2128.8,2128.1,0.46258163]
[1772688108528,1.17540706,2128.8,2128.1,0.46258163]
[1772688108942,0.46928672,2128.7,2127.9,1.17482503]
[1772688109176,0.46928672,2128.7,2128.0,0.4941594]
[1772688109948,0.46928672,2128.5,2128.0,0.4941594]
[1772688110347,0.46928672,2128.5,2127.9,1.17486562]
[1772688110563,0.46928672,2128.5,2127.5,0.4952594]